[Event "December 12 Early 2023"]
[Site "https://www.chess.com"]
[Date "2023.12.12"]
[Round "1"]
[White "Lysyj, Igor"]
[Black "JG-17"]
[Result "1-0"]
[Board "75"]
[TimeControl "180+1"]
[WhiteFideId "4150120"]
[WhiteElo "2792"]
[BlackElo "2448"]
[WhiteTeam "FID"]
[WhiteClock "0:00:20"]
[BlackClock "0:00:09"]

1. d4 {[%clk 0:02:59]}  d5 {[%clk 0:03:00]} 2. c4 {[%clk 0:02:59]}  e6 {[%clk 0:03:00]} 3. Nc3 {[%clk 0:02:57]}  c6 {[%clk 0:02:57]} 4. e3 {[%clk 0:02:56]}  Nf6 {[%clk 0:02:56]} 5. Nf3 {[%clk 0:02:55]}  Nbd7 {[%clk 0:02:57]} 6. Qc2 {[%clk 0:02:55]}  Bd6 {[%clk 0:02:57]} 7. b3 {[%clk 0:02:54]}  O-O {[%clk 0:02:58]} 8. Be2 {[%clk 0:02:54]}  e5 {[%clk 0:02:55]} 9. cxd5 {[%clk 0:02:51]}  cxd5 {[%clk 0:02:46]} 10. Nb5 {[%clk 0:02:49]}  Bb8 {[%clk 0:02:42]} 11. Ba3 {[%clk 0:02:36]}  Re8 {[%clk 0:02:40]} 12. O-O {[%clk 0:02:32]}  e4 {[%clk 0:02:35]} 13. Nd2 {[%clk 0:02:32]}  Nb6 {[%clk 0:02:31]} 14. Rfc1 {[%clk 0:02:25]}  Bd7 {[%clk 0:02:02]} 15. Nc7 {[%clk 0:02:21]}  Bxc7 {[%clk 0:02:01]} 16. Qxc7 {[%clk 0:02:20]}  Qxc7 {[%clk 0:01:58]} 17. Rxc7 {[%clk 0:02:19]}  Bc6 {[%clk 0:01:59]} 18. Bc5 {[%clk 0:02:10]}  Re6 {[%clk 0:01:41]} 19. Rc1 {[%clk 0:01:50]}  Nbd7 {[%clk 0:01:38]} 20. f3 {[%clk 0:01:01]}  exf3 {[%clk 0:01:24]} 21. Bxf3 {[%clk 0:00:59]}  Ne8 {[%clk 0:01:23]} 22. Rxd7 {[%clk 0:00:59]}  Bxd7 {[%clk 0:01:23]} 23. Bxd5 {[%clk 0:00:57]}  Rxe3 {[%clk 0:01:24]} 24. Nc4 {[%clk 0:00:56]}  Re2 {[%clk 0:01:22]} 25. Ne5 {[%clk 0:00:56]}  Be6 {[%clk 0:01:03]} 26. Bxb7 {[%clk 0:00:51]}  Rd8 {[%clk 0:01:03]} 27. Bf3 {[%clk 0:00:33]}  Rxa2 {[%clk 0:01:02]} 28. d5 {[%clk 0:00:34]}  Bxd5 {[%clk 0:00:55]} 29. Rd1 {[%clk 0:00:34]}  Nf6 {[%clk 0:00:44]} 30. Nc6 {[%clk 0:00:33]}  Rd7 {[%clk 0:00:39]} 31. Ne7+ {[%clk 0:00:24]}  Rxe7 {[%clk 0:00:27]} 32. Bxe7 {[%clk 0:00:24]}  Ne4 {[%clk 0:00:09]} 33. Bxe4 {[%clk 0:00:20]} 1-0

[Event "December 12 Early 2023"]
[Site "https://www.chess.com"]
[Date "2023.12.12"]
[Round "1"]
[White "Wagh Suyog"]
[Black "Bogaudinov, Rushan"]
[Result "1-0"]
[Board "77"]
[TimeControl "180+1"]
[WhiteFideId "25071688"]
[BlackFideId "4129288"]
[WhiteElo "2788"]
[BlackElo "2447"]
[WhiteTeam "IND"]
[BlackTeam "RUS"]
[WhiteClock "0:00:53"]
[BlackClock "0:00:00"]

1. e4 {[%clk 0:03:00]}  e6 {[%clk 0:02:59]} 2. d4 {[%clk 0:02:58]}  a6 {[%clk 0:02:53]} 3. Nc3 {[%clk 0:02:45]}  b5 {[%clk 0:02:51]} 4. Nf3 {[%clk 0:02:38]}  Bb7 {[%clk 0:02:49]} 5. Bd3 {[%clk 0:02:37]}  c5 {[%clk 0:02:45]} 6. dxc5 {[%clk 0:02:35]}  Bxc5 {[%clk 0:02:44]} 7. O-O {[%clk 0:02:35]}  Ne7 {[%clk 0:02:42]} 8. a4 {[%clk 0:02:32]}  b4 {[%clk 0:02:38]} 9. Ne2 {[%clk 0:02:32]}  O-O {[%clk 0:02:32]} 10. Ng3 {[%clk 0:02:30]}  Nbc6 {[%clk 0:02:22]} 11. Qe2 {[%clk 0:02:28]}  Ng6 {[%clk 0:02:13]} 12. Be3 {[%clk 0:02:19]}  Qb6 {[%clk 0:01:56]} 13. Bxc5 {[%clk 0:02:17]}  Qxc5 {[%clk 0:01:56]} 14. Qd2 {[%clk 0:02:17]}  Rac8 {[%clk 0:01:34]} 15. Kh1 {[%clk 0:02:16]}  Nce5 {[%clk 0:01:25]} 16. Nxe5 {[%clk 0:02:15]}  Nxe5 {[%clk 0:01:26]} 17. f4 {[%clk 0:02:08]}  Nxd3 {[%clk 0:01:25]} 18. cxd3 {[%clk 0:02:07]}  a5 {[%clk 0:01:15]} 19. f5 {[%clk 0:02:01]}  f6 {[%clk 0:01:07]} 20. Rac1 {[%clk 0:01:44]}  Qd4 {[%clk 0:01:01]} 21. Ne2 {[%clk 0:01:44]}  Qe5 {[%clk 0:00:50]} 22. fxe6 {[%clk 0:01:43]}  dxe6 {[%clk 0:00:50]} 23. b3 {[%clk 0:01:40]}  h5 {[%clk 0:00:41]} 24. Qe3 {[%clk 0:01:38]}  Qb2 {[%clk 0:00:28]} 25. Rb1 {[%clk 0:01:36]}  Qe5 {[%clk 0:00:22]} 26. Nf4 {[%clk 0:01:35]}  Rc2 {[%clk 0:00:19]} 27. Ng6 {[%clk 0:01:31]}  Qc3 {[%clk 0:00:14]} 28. Nxf8 {[%clk 0:01:27]}  Kxf8 {[%clk 0:00:15]} 29. h3 {[%clk 0:01:14]}  Ba6 {[%clk 0:00:12]} 30. e5 {[%clk 0:01:06]}  f5 {[%clk 0:00:11]} 31. Rbc1 {[%clk 0:01:02]}  Bb7 {[%clk 0:00:10]} 32. Rxc2 {[%clk 0:00:59]}  Qxc2 {[%clk 0:00:11]} 33. Rf2 {[%clk 0:00:59]}  Qxb3 {[%clk 0:00:07]} 34. Qc5+ {[%clk 0:01:00]}  Kg8 {[%clk 0:00:07]} 35. Qxa5 {[%clk 0:00:57]}  Qxd3 {[%clk 0:00:00]} 36. Qxb4 {[%clk 0:00:53]} 1-0

[Event "December 12 Early 2023"]
[Site "https://www.chess.com"]
[Date "2023.12.12"]
[Round "1"]
[White "Dilmukhametov, Artur"]
[Black "Alexandre, Anne Shopie Elizabeth"]
[Result "0-1"]
[Board "78"]
[TimeControl "180+1"]
[WhiteFideId "24179922"]
[BlackFideId "11902418"]
[WhiteElo "2444"]
[BlackElo "2785"]
[WhiteTeam "RUS"]
[BlackTeam "HAI"]
[WhiteClock "0:00:00"]
[BlackClock "0:01:30"]

1. e4 {[%clk 0:03:00]}  c5 {[%clk 0:02:59]} 2. d4 {[%clk 0:02:59]}  cxd4 {[%clk 0:02:59]} 3. c3 {[%clk 0:02:59]}  d3 {[%clk 0:02:55]} 4. Nf3 {[%clk 0:02:59]}  Nc6 {[%clk 0:02:56]} 5. Bxd3 {[%clk 0:02:58]}  g6 {[%clk 0:02:56]} 6. O-O {[%clk 0:02:58]}  Bg7 {[%clk 0:02:56]} 7. Be3 {[%clk 0:02:55]}  Nf6 {[%clk 0:02:55]} 8. h3 {[%clk 0:02:54]}  O-O {[%clk 0:02:54]} 9. Nbd2 {[%clk 0:02:53]}  d6 {[%clk 0:02:54]} 10. Re1 {[%clk 0:02:34]}  b6 {[%clk 0:02:54]} 11. Nf1 {[%clk 0:02:28]}  Bb7 {[%clk 0:02:54]} 12. Ng3 {[%clk 0:02:26]}  Rc8 {[%clk 0:02:54]} 13. Qd2 {[%clk 0:02:19]}  Nd7 {[%clk 0:02:52]} 14. Bh6 {[%clk 0:02:17]}  Nce5 {[%clk 0:02:43]} 15. Bxg7 {[%clk 0:01:52]}  Nxf3+ {[%clk 0:02:42]} 16. gxf3 {[%clk 0:01:52]}  Kxg7 {[%clk 0:02:42]} 17. f4 {[%clk 0:01:42]}  Nc5 {[%clk 0:02:34]} 18. Bc2 {[%clk 0:01:39]}  e6 {[%clk 0:02:22]} 19. Rad1 {[%clk 0:01:34]}  d5 {[%clk 0:02:21]} 20. e5 {[%clk 0:01:07]}  Qh4 {[%clk 0:02:20]} 21. Kh2 {[%clk 0:00:58]}  Rfd8 {[%clk 0:02:19]} 22. Qe3 {[%clk 0:00:55]}  Ne4 {[%clk 0:02:09]} 23. Rg1 {[%clk 0:00:49]}  Kf8 {[%clk 0:01:59]} 24. Rd4 {[%clk 0:00:44]}  Qe7 {[%clk 0:01:44]} 25. Rgd1 {[%clk 0:00:38]}  Nc5 {[%clk 0:01:41]} 26. f5 {[%clk 0:00:36]}  exf5 {[%clk 0:01:40]} 27. Qh6+ {[%clk 0:00:35]}  Ke8 {[%clk 0:01:38]} 28. Qxh7 {[%clk 0:00:34]}  Ne6 {[%clk 0:01:37]} 29. Ba4+ {[%clk 0:00:15]}  Bc6 {[%clk 0:01:33]} 30. Bxc6+ {[%clk 0:00:12]}  Rxc6 {[%clk 0:01:33]} 31. Rxd5 {[%clk 0:00:12]}  Rxd5 {[%clk 0:01:33]} 32. Rxd5 {[%clk 0:00:13]}  Rc5 {[%clk 0:01:29]} 33. Qh8+ {[%clk 0:00:12]}  Nf8 {[%clk 0:01:30]} 34. Rxc5 {[%clk 0:00:00]}  Qxc5 {[%clk 0:01:30]} 0-1

[Event "December 12 Early 2023"]
[Site "https://www.chess.com"]
[Date "2023.12.12"]
[Round "1"]
[White "Lopez Idarraga, Daniel Eduardo"]
[Black "Shuvalova, Polina"]
[Result "1-0"]
[Board "80"]
[TimeControl "180+1"]
[WhiteFideId "4405501"]
[BlackFideId "24171760"]
[WhiteElo "2440"]
[BlackElo "2781"]
[WhiteTeam "COL"]
[BlackTeam "RUS"]
[WhiteClock "0:00:50"]
[BlackClock "0:00:13"]

1. e4 {[%clk 0:03:00]}  c6 {[%clk 0:02:45]} 2. d4 {[%clk 0:03:00]}  d5 {[%clk 0:02:45]} 3. exd5 {[%clk 0:03:01]}  cxd5 {[%clk 0:02:45]} 4. c4 {[%clk 0:03:01]}  Nf6 {[%clk 0:02:45]} 5. Nc3 {[%clk 0:03:02]}  e6 {[%clk 0:02:46]} 6. Nf3 {[%clk 0:03:02]}  Bb4 {[%clk 0:02:44]} 7. Bg5 {[%clk 0:03:02]}  O-O {[%clk 0:02:43]} 8. Rc1 {[%clk 0:02:59]}  h6 {[%clk 0:02:41]} 9. Bh4 {[%clk 0:02:59]}  b6 {[%clk 0:02:40]} 10. a3 {[%clk 0:02:57]}  Bxc3+ {[%clk 0:02:40]} 11. bxc3 {[%clk 0:02:58]}  Bb7 {[%clk 0:02:40]} 12. Be2 {[%clk 0:02:49]}  Nbd7 {[%clk 0:02:39]} 13. O-O {[%clk 0:02:49]}  dxc4 {[%clk 0:02:38]} 14. Bxc4 {[%clk 0:02:48]}  Rc8 {[%clk 0:02:39]} 15. Bd3 {[%clk 0:02:47]}  Re8 {[%clk 0:02:37]} 16. Re1 {[%clk 0:02:45]}  Qe7 {[%clk 0:02:37]} 17. Ne5 {[%clk 0:02:44]}  Qxa3 {[%clk 0:02:31]} 18. Ra1 {[%clk 0:02:38]}  Qxc3 {[%clk 0:02:26]} 19. Rxa7 {[%clk 0:02:39]}  Rc7 {[%clk 0:02:20]} 20. Bg3 {[%clk 0:02:28]}  Nxe5 {[%clk 0:02:04]} 21. Bxe5 {[%clk 0:02:27]}  Rce7 {[%clk 0:02:04]} 22. Bxf6 {[%clk 0:02:22]}  gxf6 {[%clk 0:02:02]} 23. Re3 {[%clk 0:02:16]}  Qc6 {[%clk 0:01:28]} 24. Rg3+ {[%clk 0:01:30]}  Kf8 {[%clk 0:01:26]} 25. Qd2 {[%clk 0:01:29]}  Rc7 {[%clk 0:01:24]} 26. Qxh6+ {[%clk 0:01:28]}  Ke7 {[%clk 0:01:25]} 27. Bf1 {[%clk 0:01:24]}  Ba8 {[%clk 0:01:09]} 28. d5 {[%clk 0:01:21]}  exd5 {[%clk 0:00:25]} 29. Re3+ {[%clk 0:01:18]}  Kd7 {[%clk 0:00:23]} 30. Rxe8 {[%clk 0:01:15]}  Rxa7 {[%clk 0:00:12]} 31. Qf8 {[%clk 0:01:12]}  Qc5 {[%clk 0:00:02]} 32. Qxf7+ {[%clk 0:01:00]}  Kc6 {[%clk 0:00:03]} 33. Rc8+ {[%clk 0:00:57]}  Kd6 {[%clk 0:00:02]} 34. Qxf6+ {[%clk 0:00:53]}  Kd7 {[%clk 0:00:02]} 35. Rxc5 {[%clk 0:00:48]}  bxc5 {[%clk 0:00:02]} 36. Bb5+ {[%clk 0:00:48]}  Kc7 {[%clk 0:00:02]} 37. h4 {[%clk 0:00:46]}  Bb7 {[%clk 0:00:01]} 38. h5 {[%clk 0:00:45]}  c4 {[%clk 0:00:01]} 39. h6 {[%clk 0:00:45]}  Ra5 {[%clk 0:00:01]} 40. Qe7+ {[%clk 0:00:44]}  Kb6 {[%clk 0:00:01]} 41. Be8 {[%clk 0:00:42]}  Rc5 {[%clk 0:00:01]} 42. h7 {[%clk 0:00:42]}  c3 {[%clk 0:00:01]} 43. h8=Q {[%clk 0:00:40]}  c2 {[%clk 0:00:02]} 44. Qxc5+ {[%clk 0:00:40]}  Kxc5 {[%clk 0:00:02]} 45. Qc3+ {[%clk 0:00:40]}  Kd6 {[%clk 0:00:03]} 46. Qxc2 {[%clk 0:00:41]}  Bc6 {[%clk 0:00:04]} 47. Bxc6 {[%clk 0:00:40]}  Ke5 {[%clk 0:00:04]} 48. Bxd5 {[%clk 0:00:40]}  Kxd5 {[%clk 0:00:04]} 49. Qe2 {[%clk 0:00:40]}  Kd4 {[%clk 0:00:04]} 50. f4 {[%clk 0:00:41]}  Kc5 {[%clk 0:00:05]} 51. f5 {[%clk 0:00:42]}  Kd6 {[%clk 0:00:05]} 52. f6 {[%clk 0:00:43]}  Kd7 {[%clk 0:00:06]} 53. f7 {[%clk 0:00:44]}  Kc7 {[%clk 0:00:07]} 54. f8=Q {[%clk 0:00:45]}  Kb6 {[%clk 0:00:08]} 55. g4 {[%clk 0:00:45]}  Kc6 {[%clk 0:00:09]} 56. g5 {[%clk 0:00:46]}  Kd5 {[%clk 0:00:09]} 57. g6 {[%clk 0:00:47]}  Kd4 {[%clk 0:00:10]} 58. g7 {[%clk 0:00:48]}  Kd5 {[%clk 0:00:11]} 59. Qff1 {[%clk 0:00:48]}  Kc6 {[%clk 0:00:11]} 60. g8=Q {[%clk 0:00:48]}  Kd7 {[%clk 0:00:12]} 61. Qd5+ {[%clk 0:00:48]}  Kc7 {[%clk 0:00:12]} 62. Qc1+ {[%clk 0:00:49]}  Kb8 {[%clk 0:00:13]} 63. Qeb2+ {[%clk 0:00:50]}  Ka7 {[%clk 0:00:13]} 64. Qda2# {[%clk 0:00:50]} 1-0

[Event "December 12 Early 2023"]
[Site "https://www.chess.com"]
[Date "2023.12.12"]
[Round "1"]
[White "Bardyk, Artem"]
[Black "Lopusiewicz, Piotr"]
[Result "1/2-1/2"]
[Board "81"]
[TimeControl "180+1"]
[WhiteFideId "34349979"]
[BlackFideId "1116029"]
[WhiteElo "2778"]
[BlackElo "2439"]
[WhiteTeam "RUS"]
[BlackTeam "POL"]
[WhiteClock "0:00:03"]
[BlackClock "0:00:11"]

1. e4 {[%clk 0:03:00]}  e5 {[%clk 0:02:59]} 2. d4 {[%clk 0:02:57]}  exd4 {[%clk 0:02:58]} 3. Qxd4 {[%clk 0:02:58]}  Nc6 {[%clk 0:02:58]} 4. Qd3 {[%clk 0:02:58]}  Nf6 {[%clk 0:02:58]} 5. Nc3 {[%clk 0:02:59]}  Bb4 {[%clk 0:02:51]} 6. Bd2 {[%clk 0:02:58]}  O-O {[%clk 0:02:51]} 7. Nge2 {[%clk 0:02:58]}  Re8 {[%clk 0:02:51]} 8. O-O-O {[%clk 0:02:58]}  d6 {[%clk 0:02:51]} 9. Bg5 {[%clk 0:02:58]}  h6 {[%clk 0:02:50]} 10. Bxf6 {[%clk 0:02:58]}  Qxf6 {[%clk 0:02:49]} 11. Nd5 {[%clk 0:02:59]}  Qd8 {[%clk 0:02:34]} 12. Nxb4 {[%clk 0:02:54]}  Nxb4 {[%clk 0:02:35]} 13. Qd2 {[%clk 0:02:54]}  Nc6 {[%clk 0:02:28]} 14. Nc3 {[%clk 0:02:48]}  a6 {[%clk 0:02:21]} 15. f4 {[%clk 0:02:33]}  Bg4 {[%clk 0:02:20]} 16. Re1 {[%clk 0:02:32]}  Qf6 {[%clk 0:02:15]} 17. Nd5 {[%clk 0:02:24]}  Qd8 {[%clk 0:02:09]} 18. f5 {[%clk 0:02:05]}  f6 {[%clk 0:01:56]} 19. Bc4 {[%clk 0:01:52]}  Kh8 {[%clk 0:01:52]} 20. Qf4 {[%clk 0:01:36]}  Bh5 {[%clk 0:01:46]} 21. g4 {[%clk 0:01:33]}  Bf7 {[%clk 0:01:45]} 22. h4 {[%clk 0:01:31]}  Ne5 {[%clk 0:01:44]} 23. Bb3 {[%clk 0:01:20]}  c6 {[%clk 0:01:44]} 24. Ne3 {[%clk 0:01:18]}  Bxb3 {[%clk 0:01:44]} 25. axb3 {[%clk 0:01:19]}  a5 {[%clk 0:01:38]} 26. g5 {[%clk 0:01:19]}  fxg5 {[%clk 0:01:38]} 27. hxg5 {[%clk 0:01:19]}  Nf7 {[%clk 0:01:32]} 28. gxh6 {[%clk 0:01:12]}  Qg5 {[%clk 0:01:24]} 29. hxg7+ {[%clk 0:01:11]}  Kg8 {[%clk 0:01:23]} 30. Rh8+ {[%clk 0:00:51]}  Kxg7 {[%clk 0:01:20]} 31. f6+ {[%clk 0:00:50]}  Kg6 {[%clk 0:01:08]} 32. Qf5+ {[%clk 0:00:25]}  Qxf5 {[%clk 0:01:07]} 33. exf5+ {[%clk 0:00:25]}  Kg5 {[%clk 0:01:00]} 34. Rh7 {[%clk 0:00:25]}  Ne5 {[%clk 0:00:46]} 35. f7 {[%clk 0:00:18]}  Rf8 {[%clk 0:00:44]} 36. Rg1+ {[%clk 0:00:18]}  Kf6 {[%clk 0:00:37]} 37. Rh6+ {[%clk 0:00:08]}  Ke7 {[%clk 0:00:34]} 38. f6+ {[%clk 0:00:08]}  Ke6 {[%clk 0:00:31]} 39. Ng2 {[%clk 0:00:06]}  Rxf7 {[%clk 0:00:29]} 40. Nf4+ {[%clk 0:00:06]}  Kd7 {[%clk 0:00:29]} 41. c4 {[%clk 0:00:06]}  Raf8 {[%clk 0:00:28]} 42. Nh5 {[%clk 0:00:06]}  b6 {[%clk 0:00:26]} 43. Kc2 {[%clk 0:00:06]}  Ke6 {[%clk 0:00:20]} 44. Kc3 {[%clk 0:00:05]}  d5 {[%clk 0:00:20]} 45. cxd5+ {[%clk 0:00:05]}  cxd5 {[%clk 0:00:21]} 46. Nf4+ {[%clk 0:00:03]}  Kd6 {[%clk 0:00:21]} 47. Rd1 {[%clk 0:00:02]}  Rc8+ {[%clk 0:00:18]} 48. Kd2 {[%clk 0:00:02]}  Ng4 {[%clk 0:00:15]} 49. Rh4 {[%clk 0:00:01]}  Nxf6 {[%clk 0:00:15]} 50. Rf1 {[%clk 0:00:01]}  Ne4+ {[%clk 0:00:15]} 51. Ke3 {[%clk 0:00:02]}  Re8 {[%clk 0:00:15]} 52. Rh6+ {[%clk 0:00:02]}  Kc5 {[%clk 0:00:14]} 53. Nd3+ {[%clk 0:00:02]}  Kb5 {[%clk 0:00:13]} 54. Rxf7 {[%clk 0:00:03]}  Ng5+ {[%clk 0:00:13]} 55. Kd4 {[%clk 0:00:02]}  Nxf7 {[%clk 0:00:13]} 56. Rf6 {[%clk 0:00:02]}  Nd8 {[%clk 0:00:11]} 57. Kxd5 {[%clk 0:00:01]}  Nb7 {[%clk 0:00:12]} 58. Ne5 {[%clk 0:00:01]}  Nc5 {[%clk 0:00:11]} 59. Nc4 {[%clk 0:00:01]}  Rd8+ {[%clk 0:00:11]} 60. Ke5 {[%clk 0:00:01]}  Nd7+ {[%clk 0:00:09]} 61. Ke6 {[%clk 0:00:01]}  Nxf6 {[%clk 0:00:10]} 62. Kxf6 {[%clk 0:00:02]}  Rc8 {[%clk 0:00:10]} 63. Nd6+ {[%clk 0:00:02]}  Kb4 {[%clk 0:00:10]} 64. Nxc8 {[%clk 0:00:02]}  b5 {[%clk 0:00:09]} 65. Nd6 {[%clk 0:00:01]}  Kxb3 {[%clk 0:00:09]} 66. Nxb5 {[%clk 0:00:02]}  Kxb2 {[%clk 0:00:10]} 67. Ke5 {[%clk 0:00:03]}  Kb3 {[%clk 0:00:10]} 68. Kd5 {[%clk 0:00:03]}  Kb4 {[%clk 0:00:10]} 69. Kc6 {[%clk 0:00:03]}  a4 {[%clk 0:00:11]} 70. Kb6 {[%clk 0:00:04]}  a3 {[%clk 0:00:11]} 71. Nxa3 {[%clk 0:00:03]} 1/2-1/2

[Event "December 12 Early 2023"]
[Site "https://www.chess.com"]
[Date "2023.12.12"]
[Round "1"]
[White "Pourkashiyan, Atousa"]
[Black "Yuan, Qingyu"]
[Result "0-1"]
[Board "82"]
[TimeControl "180+1"]
[WhiteFideId "12502014"]
[BlackFideId "8609772"]
[WhiteElo "2436"]
[BlackElo "2776"]
[WhiteTeam "USA"]
[BlackTeam "CHN"]
[WhiteClock "0:01:35"]
[BlackClock "0:01:28"]

1. e4 {[%clk 0:03:00]}  e5 {[%clk 0:03:00]} 2. Nf3 {[%clk 0:02:59]}  Nc6 {[%clk 0:03:00]} 3. Bb5 {[%clk 0:02:59]}  Nf6 {[%clk 0:03:00]} 4. d3 {[%clk 0:02:56]}  Bc5 {[%clk 0:03:00]} 5. O-O {[%clk 0:02:53]}  Nd4 {[%clk 0:03:01]} 6. Nxd4 {[%clk 0:02:46]}  Bxd4 {[%clk 0:03:01]} 7. c3 {[%clk 0:02:45]}  Bb6 {[%clk 0:03:01]} 8. d4 {[%clk 0:02:37]}  O-O {[%clk 0:02:54]} 9. dxe5 {[%clk 0:02:31]}  Nxe4 {[%clk 0:02:55]} 10. Bd3 {[%clk 0:02:30]}  d5 {[%clk 0:02:41]} 11. exd6 {[%clk 0:02:30]}  Nxd6 {[%clk 0:02:38]} 12. Bf4 {[%clk 0:02:27]}  Qf6 {[%clk 0:02:30]} 13. Qf3 {[%clk 0:02:25]}  Bd7 {[%clk 0:02:17]} 14. Nd2 {[%clk 0:02:25]}  Bc6 {[%clk 0:02:12]} 15. Qg3 {[%clk 0:02:20]}  Nf5 {[%clk 0:02:01]} 16. Bxf5 {[%clk 0:02:12]}  Qxf5 {[%clk 0:02:01]} 17. Bxc7 {[%clk 0:02:12]}  Bxc7 {[%clk 0:01:35]} 18. Qxc7 {[%clk 0:02:13]}  Qg5 {[%clk 0:01:36]} 19. Qg3 {[%clk 0:01:58]}  Qxd2 {[%clk 0:01:35]} 20. b3 {[%clk 0:01:58]}  Rad8 {[%clk 0:01:34]} 21. c4 {[%clk 0:01:59]}  h6 {[%clk 0:01:33]} 22. h3 {[%clk 0:01:59]}  Rfe8 {[%clk 0:01:33]} 23. Rad1 {[%clk 0:01:57]}  Qxa2 {[%clk 0:01:30]} 24. Rxd8 {[%clk 0:01:55]}  Rxd8 {[%clk 0:01:31]} 25. Re1 {[%clk 0:01:56]}  Qd2 {[%clk 0:01:29]} 26. Ra1 {[%clk 0:01:54]}  a6 {[%clk 0:01:29]} 27. Qe5 {[%clk 0:01:35]}  Qd4 {[%clk 0:01:28]} 0-1

[Event "December 12 Early 2023"]
[Site "https://www.chess.com"]
[Date "2023.12.12"]
[Round "1"]
[White "Budisavljevic, Luka"]
[Black "Gatterer, Florian"]
[Result "1/2-1/2"]
[Board "83"]
[TimeControl "180+1"]
[WhiteFideId "960047"]
[BlackFideId "811688"]
[WhiteElo "2774"]
[BlackElo "2436"]
[WhiteTeam "SRB"]
[BlackTeam "ITA"]
[WhiteClock "0:02:12"]
[BlackClock "0:01:48"]

1. d4 {[%clk 0:03:00]}  Nf6 {[%clk 0:02:58]} 2. Nf3 {[%clk 0:03:01]}  g6 {[%clk 0:02:59]} 3. c4 {[%clk 0:03:01]}  Bg7 {[%clk 0:02:58]} 4. Nc3 {[%clk 0:03:02]}  d5 {[%clk 0:02:57]} 5. h4 {[%clk 0:03:01]}  c5 {[%clk 0:02:54]} 6. dxc5 {[%clk 0:02:43]}  Qa5 {[%clk 0:02:52]} 7. cxd5 {[%clk 0:02:33]}  O-O {[%clk 0:02:35]} 8. Bd2 {[%clk 0:02:32]}  Qxc5 {[%clk 0:02:32]} 9. e4 {[%clk 0:02:32]}  Ng4 {[%clk 0:02:19]} 10. Qe2 {[%clk 0:02:28]}  b6 {[%clk 0:02:10]} 11. Rc1 {[%clk 0:02:28]}  Ba6 {[%clk 0:02:05]} 12. Nb5 {[%clk 0:02:26]}  Bxb5 {[%clk 0:01:54]} 13. Qxb5 {[%clk 0:02:12]}  Qxf2+ {[%clk 0:01:48]} 1/2-1/2

[Event "December 12 Early 2023"]
[Site "https://www.chess.com"]
[Date "2023.12.12"]
[Round "1"]
[White "Dmitrenko, Viktor"]
[Black "Lagarde, Maxime"]
[Result "0-1"]
[Board "84"]
[TimeControl "180+1"]
[WhiteFideId "14110270"]
[BlackFideId "662399"]
[WhiteElo "2431"]
[BlackElo "2770"]
[WhiteTeam "UKR"]
[BlackTeam "FRA"]
[WhiteClock "0:00:12"]
[BlackClock "0:02:03"]

1. d4 {[%clk 0:03:00]}  Nc6 {[%clk 0:02:58]} 2. Nf3 {[%clk 0:02:58]}  d6 {[%clk 0:02:58]} 3. e4 {[%clk 0:02:49]}  Nf6 {[%clk 0:02:57]} 4. Nc3 {[%clk 0:02:46]}  g6 {[%clk 0:02:57]} 5. h3 {[%clk 0:02:41]}  Bg7 {[%clk 0:02:58]} 6. Bg5 {[%clk 0:02:32]}  h6 {[%clk 0:02:57]} 7. Be3 {[%clk 0:02:24]}  a6 {[%clk 0:02:57]} 8. Qd2 {[%clk 0:02:16]}  b5 {[%clk 0:02:57]} 9. a3 {[%clk 0:02:16]}  Bb7 {[%clk 0:02:55]} 10. Bd3 {[%clk 0:02:12]}  e5 {[%clk 0:02:53]} 11. d5 {[%clk 0:02:04]}  Ne7 {[%clk 0:02:53]} 12. a4 {[%clk 0:01:57]}  b4 {[%clk 0:02:50]} 13. Ne2 {[%clk 0:01:56]}  a5 {[%clk 0:02:48]} 14. c3 {[%clk 0:01:51]}  c5 {[%clk 0:02:39]} 15. Bb5+ {[%clk 0:01:35]}  Kf8 {[%clk 0:02:39]} 16. Ng3 {[%clk 0:01:33]}  Kg8 {[%clk 0:02:35]} 17. O-O {[%clk 0:01:26]}  g5 {[%clk 0:02:34]} 18. cxb4 {[%clk 0:01:07]}  axb4 {[%clk 0:02:33]} 19. Nxe5 {[%clk 0:01:02]}  dxe5 {[%clk 0:02:32]} 20. Bxc5 {[%clk 0:01:01]}  Ng6 {[%clk 0:02:29]} 21. Bxb4 {[%clk 0:00:51]}  Bf8 {[%clk 0:02:22]} 22. Rfe1 {[%clk 0:00:45]}  Nf4 {[%clk 0:02:20]} 23. Nf5 {[%clk 0:00:41]}  Bc8 {[%clk 0:02:19]} 24. Ng3 {[%clk 0:00:33]}  h5 {[%clk 0:02:18]} 25. Bc3 {[%clk 0:00:28]}  Bd6 {[%clk 0:02:15]} 26. Bc6 {[%clk 0:00:27]}  Ra7 {[%clk 0:02:13]} 27. b4 {[%clk 0:00:26]}  h4 {[%clk 0:02:11]} 28. Nf1 {[%clk 0:00:24]}  g4 {[%clk 0:02:10]} 29. hxg4 {[%clk 0:00:22]}  Bxg4 {[%clk 0:02:11]} 30. Nh2 {[%clk 0:00:18]}  Bc8 {[%clk 0:02:09]} 31. b5 {[%clk 0:00:18]}  Rh7 {[%clk 0:02:09]} 32. a5 {[%clk 0:00:17]}  Rg7 {[%clk 0:02:09]} 33. Kh1 {[%clk 0:00:17]}  Nxg2 {[%clk 0:02:05]} 34. Rg1 {[%clk 0:00:16]}  Nxe4 {[%clk 0:02:04]} 35. Qd3 {[%clk 0:00:12]}  Nxf2# {[%clk 0:02:03]} 0-1